bitfinex/quotes_SOLUSD_20220210
["timestamp","ask_amount","ask_price","bid_price","bid_amount"]
[1644487970968,0.47864995,113.84,113.75,48.3406]
[1644487971167,0.47864995,113.84,113.76,43.9446]
[1644487971369,4.87164995,113.84,113.77,4.393]
[1644487971767,46.79247777,113.83,113.78,40.89923898]
[1644487971968,46.79247777,113.83,113.78,13.1848]
[1644487973169,0.47864995,113.84,113.78,13.1848]
[1644487973569,0.47864995,113.84,113.78,19.4348]
[1644487974171,43.43413343,113.84,113.78,19.1848]
[1644487974372,43.43413343,113.84,113.78,23.8278]
[1644487974771,0.47864995,113.84,113.8,13.1821]
[1644487975375,0.47864995,113.84,113.8,19.1821]
[1644487975875,0.47864995,113.84,113.8,19.4321]
[1644487976076,0.47864995,113.84,113.8,19.1821]
[1644487976277,0.47864995,113.84,113.8,19.4321]
[1644487976474,0.47864995,113.84,113.8,31.8921]
[1644487976677,0.47864995,113.84,113.8,31.6421]
[1644487977976,0.47864995,113.84,113.82,13.1785]
[1644487978176,0.47864995,113.84,113.83,2.58705679]
[1644487979576,3.9559931,113.84,113.8,91.61411563]
[1644487979777,3.9559931,113.84,113.83,13.1782]
[1644487980178,3.51084992,113.84,113.83,15.76525679]
[1644487980381,3.51084992,113.84,113.83,2.58705679]
[1644487980778,3.9559931,113.84,113.8,49.9283]
[1644487981079,3.9559931,113.84,113.8,50.1783]
[1644487981780,0.47864995,113.84,113.83,13.1791]
[1644487981980,0.47864995,113.84,113.83,15.76615679]
[1644487984281,3.51084992,113.84,113.83,13.1791]
[1644487984483,3.9559931,113.84,113.82,13.1804]
[1644487984884,38.45920121,113.84,113.82,13.1804]
[1644487985083,3.9559931,113.84,113.82,13.1804]
[1644487985285,3.51084992,113.84,113.83,2.58705679]
[1644487985483,0.47864995,113.84,113.83,2.58705679]
[1644487986184,22.7683,113.87,113.83,2.58705679]
[1644487986385,131.8687,113.9,113.83,16.01555679]
[1644487986585,114.3,113.9,113.84,45.74758889]
[1644487986786,51.43122503,113.93,113.84,66.42973391]
[1644487986988,44.55490195,113.93,113.84,66.42973391]
[1644487987286,18.88473852,113.92,113.86,48.07366621]
[1644487987485,18.88473852,113.92,113.86,117.64116621]
[1644487987688,18.88473852,113.93,113.86,123.89116621]
[1644487987886,18.88473852,113.93,113.86,125.86331123]
[1644487988086,6.87632308,113.98,113.86,125.86331123]
[1644487988285,38.26920935,113.97,113.86,112.65831123]
[1644487988486,17.5609,113.96,113.87,13.1708]
[1644487988686,17.5609,113.96,113.86,18.46]
[1644487988687,4.98523571,113.95,113.84,12.46]
[1644487988889,4.39,113.94,113.83,12.46]
[1644487989086,54.96822308,113.94,113.81,18.46]
[1644487989290,18.90743922,113.93,113.82,4.39]
[1644487989496,43.33009515,113.92,113.85,13.1744]
[1644487989688,86.95273437,113.92,113.86,4.39]
[1644487989890,91.34273437,113.92,113.85,13.1744]
[1644487990290,72.43529515,113.92,113.85,13.4244]
[1644487990493,72.43529515,113.92,113.85,13.1744]
[1644487990992,21.13140171,113.91,113.82,4.39]
[1644487991191,4.391,113.9,113.82,4.39]
[1644487991392,50.25880171,113.9,113.82,4.39]
[1644487991890,58.55095574,113.89,113.82,4.39]
[1644487992292,37.56615896,113.87,113.82,4.39]
[1644487992491,37.56615896,113.87,113.8,13.1805]
[1644487992691,62.31155896,113.87,113.8,13.1805]
[1644487993294,62.31155896,113.87,113.81,4.392]
[1644487993493,4.392,113.9,113.81,17.5711]
[1644487993693,13.1767,113.92,113.81,38.00854511]
[1644487993898,48.57383814,113.93,113.82,1.97744511]
[1644487994098,48.57383814,113.93,113.83,16.85]
[1644487994293,23.19889309,113.92,113.83,12.71]
[1644487994494,54.11870203,113.91,113.83,25.8859]
[1644487994796,83.41459512,113.91,113.83,25.8859]
[1644487995093,23.19889309,113.9,113.8,12.46]
[1644487995331,23.19889309,113.9,113.78,35.4223]
[1644487995501,39.11858633,113.88,113.79,57.07483117]
[1644487995896,39.11858633,113.88,113.79,63.07483117]
[1644487996095,43.86228439,113.86,113.79,63.07483117]
[1644487996294,43.86228439,113.86,113.79,63.32483117]
[1644487998495,43.86228439,113.86,113.79,67.71683117]
[1644487998697,22.5093,113.87,113.79,67.71683117]
[1644487998698,42.3296,113.9,113.8,1.98307395]
[1644487998895,37.9376,113.9,113.81,17.5689]
[1644487999396,24.7594,113.9,113.81,23.8189]
[1644487999697,42.40118527,113.89,113.82,40.73193413]
[1644487999898,42.40118527,113.89,113.82,40.98193413]
[1644488000096,42.40118527,113.89,113.82,54.15943413]
[1644488000995,4.391,113.89,113.82,54.15943413]
[1644488001195,4.391,113.89,113.82,60.15943413]
[1644488001994,39.16809471,113.89,113.82,60.15943413]
[1644488002195,24.7594,113.9,113.82,60.15943413]
[1644488002395,24.7594,113.9,113.83,4.391]
[1644488002597,22.7427,113.92,113.85,13.1747]
[1644488002816,45.7878,113.92,113.85,13.1747]
[1644488003196,53.16793886,113.91,113.85,58.06668571]
[1644488003697,34.36522297,113.91,113.85,58.06668571]
[1644488005301,34.36522297,113.91,113.85,13.1747]
[1644488006298,34.36522297,113.91,113.86,39.50314709]
[1644488006902,34.36522297,113.91,113.85,13.1747]
[1644488007100,38.75522297,113.91,113.85,13.1747]
[1644488007803,38.75522297,113.91,113.86,44.07893214]
[1644488008201,38.75522297,113.91,113.85,13.1747]
[1644488009203,38.75522297,113.91,113.86,41.81794831]
[1644488009403,38.75522297,113.91,113.86,54.99184831]
[1644488010516,38.75522297,113.91,113.86,13.1739]
[1644488010703,34.36522297,113.91,113.86,13.1739]
[1644488011605,34.36522297,113.91,113.86,52.64416258]
[1644488012205,34.36522297,113.91,113.86,13.1739]
[1644488012811,38.75522297,113.91,113.86,13.1739]
[1644488013510,34.36522297,113.91,113.86,13.1739]
[1644488015712,34.36522297,113.91,113.87,42.52379801]
[1644488015913,34.36522297,113.91,113.86,13.1739]
[1644488016115,38.75522297,113.91,113.85,13.1754]
[1644488016516,38.75522297,113.91,113.84,4.39]
[1644488016718,38.75522297,113.91,113.82,19.3719]
[1644488016918,38.75522297,113.91,113.83,6.0]
[1644488016919,41.31732785,113.9,113.83,6.0]
[1644488017117,41.31732785,113.9,113.83,13.1777]
[1644488017118,47.46984384,113.89,113.83,13.1777]
[1644488017318,51.86084384,113.89,113.83,19.1777]
[1644488018638,51.86084384,113.89,113.84,41.51868585]
[1644488018839,47.46984384,113.89,113.84,41.51868585]
[1644488020341,47.46984384,113.89,113.84,54.69548585]
[1644488020740,35.7221,113.9,113.84,54.94548585]
[1644488020940,22.5437,113.9,113.84,54.94548585]
[1644488021142,22.5437,113.9,113.84,54.69548585]
[1644488021341,22.5437,113.9,113.84,54.94548585]
[1644488021941,22.5437,113.9,113.84,54.69548585]
[1644488022143,22.5437,113.9,113.84,54.94548585]
[1644488022542,22.5437,113.9,113.84,54.69548585]
[1644488022745,22.5437,113.9,113.84,54.94548585]
[1644488022943,22.5437,113.9,113.84,54.69548585]
[1644488023146,22.5437,113.9,113.84,54.94548585]
[1644488023443,2.48632308,113.93,113.85,12.46]
[1644488023647,54.77228774,113.94,113.88,13.1714]
[1644488023844,47.89596466,113.94,113.86,4.39]
[1644488024044,23.17836783,113.93,113.84,41.51868585]
[1644488024249,45.63852631,113.92,113.85,4.39]
[1644488024444,4.39,113.91,113.84,47.76868585]
[1644488024644,35.98794577,113.9,113.84,41.51868585]
[1644488024944,35.98794577,113.9,113.84,53.97868585]
[1644488025145,35.98794577,113.9,113.84,58.36868585]
[1644488025544,35.98794577,113.9,113.85,13.1757]
[1644488025747,40.37794577,113.9,113.85,13.1757]
[1644488026145,40.37794577,113.9,113.84,4.39]
[1644488026346,35.98794577,113.9,113.84,4.39]
[1644488026750,49.16514577,113.9,113.84,17.5669]
[1644488026948,49.16514577,113.9,113.84,57.1377388]
[1644488027650,49.16514577,113.9,113.84,57.3877388]
[1644488028050,35.98794577,113.9,113.84,57.3877388]
[1644488028852,23.9662,113.92,113.84,57.3877388]
[1644488029253,23.9662,113.92,113.84,63.3877388]
[1644488029451,23.9662,113.92,113.84,52.9977388]
[1644488029851,18.73912408,113.91,113.84,52.9977388]
[1644488030052,18.73912408,113.91,113.85,4.39]
[1644488030253,63.77764795,113.92,113.86,48.63895524]
[1644488030454,23.9662,113.92,113.86,48.63895524]
[1644488030758,23.9662,113.92,113.86,48.88895524]
[1644488031153,23.9662,113.92,113.86,48.63895524]
[1644488031353,23.9662,113.92,113.86,48.88895524]
[1644488031554,23.9662,113.92,113.86,48.63895524]
[1644488031764,23.9662,113.92,113.86,48.88895524]
[1644488031955,23.9662,113.92,113.86,48.63895524]
[1644488032155,23.9662,113.92,113.86,48.88895524]
[1644488032957,23.9662,113.92,113.86,61.09895524]
[1644488033156,23.9662,113.92,113.86,67.34895524]
[1644488033359,24.9908,113.93,113.86,67.34895524]
[1644488033556,24.9908,113.93,113.88,38.92936633]
[1644488033760,24.9908,113.93,113.88,52.09966633]
[1644488034962,114.3,113.94,113.88,52.09966633]
[1644488035560,18.77160885,113.93,113.88,52.09966633]
[1644488035763,18.77160885,113.93,113.88,58.34966633]
[1644488035963,18.77160885,113.95,113.88,52.34966633]
[1644488036587,18.77160885,113.95,113.89,12.46]
[1644488036779,5.96039115,113.98,113.89,20.69307395]
[1644488036960,5.96039115,113.98,113.91,13.1648]
[1644488037160,3.14706979,113.99,113.91,13.1648]
[1644488037161,0.66074671,113.99,113.92,12.46]
[1644488037461,0.66074671,113.99,113.93,45.25625909]
[1644488037661,44.24522326,113.98,113.93,12.46]
[1644488037861,44.24522326,113.98,113.94,13.1622]
[1644488038062,46.4764448,113.98,113.91,43.8839]
[1644488038266,44.24522326,113.98,113.91,4.388]
[1644488038666,44.24522326,113.98,113.91,43.0940394]
[1644488038864,48.63322326,113.98,113.89,12.46]
[1644488039063,24.0033,113.97,113.9,13.1695]
[1644488039265,4.388,113.96,113.89,12.46]
[1644488039464,19.79112154,113.96,113.86,4.388]
[1644488039664,2.23122154,113.95,113.87,6.0]
[1644488039864,2.23122154,113.95,113.86,4.388]
[1644488039865,49.20639307,113.94,113.88,36.58756736]
[1644488040565,49.20639307,113.94,113.88,49.75906736]
[1644488040765,44.81739307,113.94,113.88,13.1715]
[1644488041567,44.81739307,113.94,113.87,17.5616]
[1644488041766,44.81739307,113.94,113.87,53.12845945]
[1644488042168,44.81739307,113.94,113.89,46.70541766]
[1644488042367,44.81739307,113.94,113.89,59.16541766]
[1644488043168,44.81739307,113.94,113.89,46.70541766]
[1644488043369,44.81739307,113.94,113.87,16.849]
[1644488043771,44.81739307,113.94,113.89,13.1684]
[1644488044376,44.81739307,113.94,113.89,61.29421309]
[1644488044775,4.389,113.96,113.89,74.00421309]
[1644488044976,189.46614671,113.99,113.89,73.75421309]
[1644488045175,13.1692,113.98,113.89,73.75421309]
[1644488045377,4.388,113.97,113.89,73.75421309]
[1644488045576,22.5486,113.96,113.89,73.75421309]
[1644488045776,70.49783535,113.96,113.89,73.75421309]
[1644488046179,22.5486,113.96,113.89,73.75421309]
[1644488046377,22.5486,113.96,113.89,74.00421309]
[1644488046578,161.72804671,113.99,113.89,74.00421309]
[1644488046776,185.65154671,113.99,113.89,80.00421309]
[1644488047178,47.20713258,113.98,113.89,79.75421309]
[1644488047476,36.61648866,113.96,113.89,79.75421309]
[1644488047678,36.61648866,113.96,113.89,78.14221309]
[1644488047876,36.61648866,113.96,113.89,30.0164]
[1644488048077,4.388,113.95,113.89,4.388]
[1644488048477,17.5605,113.95,113.89,4.388]
[1644488048878,42.43234707,113.94,113.89,41.26095331]
[1644488049078,4.389,113.97,113.89,36.87295331]
[1644488049281,23.8981,113.96,113.89,36.87295331]
[1644488049679,37.0695,113.96,113.89,36.87295331]
[1644488049879,4.388,113.95,113.89,36.87295331]
[1644488050079,50.19529041,113.95,113.89,36.87295331]
[1644488050281,50.19529041,113.95,113.87,12.46]
[1644488050779,45.80729041,113.95,113.88,4.389]
[1644488050981,58.97969041,113.95,113.88,4.389]
[1644488051290,60.22958022,113.95,113.88,46.73668878]
[1644488051479,60.22958022,113.95,113.88,4.389]
[1644488051899,1.24988981,113.94,113.88,4.389]
[1644488052298,14.42348981,113.94,113.88,4.389]
[1644488052598,37.14233183,113.93,113.88,4.389]
[1644488052798,37.14233183,113.93,113.88,47.37623203]
[1644488054299,37.14233183,113.93,113.88,42.98723203]
[1644488054697,37.14233183,113.93,113.87,13.1722]
[1644488055698,37.14233183,113.93,113.88,35.26582756]
[1644488055901,37.14233183,113.93,113.88,52.82642756]
[1644488056099,37.14233183,113.93,113.88,48.43742756]
[1644488056299,37.14233183,113.93,113.85,4.389]
[1644488056502,37.14233183,113.93,113.84,48.637]
[1644488056703,4.39,113.92,113.84,48.637]
[1644488056901,38.39222164,113.93,113.85,4.39]
[1644488057300,38.39222164,113.93,113.86,42.65206614]
[1644488057700,13.1756,113.92,113.86,42.65206614]
[1644488057899,36.2220683,113.91,113.86,42.65206614]
[1644488058300,36.2220683,113.91,113.85,4.39]
[1644488058500,41.86195811,113.91,113.82,12.46]
[1644488058700,41.86195811,113.91,113.83,4.391]
[1644488058701,23.6177,113.9,113.83,4.391]
[1644488059299,23.6177,113.9,113.84,38.72152906]
[1644488059502,46.88442946,113.89,113.84,38.72152906]
[1644488059699,46.88442946,113.89,113.84,51.89782906]
[1644488060301,23.6177,113.9,113.84,51.89782906]
[1644488061002,23.6177,113.9,113.84,52.14782906]
[1644488061400,70.76088308,113.9,113.84,52.14782906]
[1644488062200,70.76088308,113.9,113.84,51.89782906]
[1644488063002,23.6177,113.9,113.84,52.14782906]
[1644488063201,23.6177,113.9,113.84,51.89782906]
[1644488063401,23.6177,113.9,113.84,52.14782906]
[1644488063602,23.6177,113.9,113.84,51.89782906]
[1644488064002,59.67865233,113.9,113.84,51.89782906]
[1644488064803,59.67865233,113.9,113.84,13.1763]
[1644488065305,59.67865233,113.9,113.83,13.1778]
[1644488065505,70.93365233,113.9,113.81,27.0999]
[1644488065706,4.391,113.89,113.81,22.7089]
[1644488065909,44.97766471,113.88,113.81,35.32851351]
[1644488066106,68.93526471,113.88,113.81,35.32851351]
[1644488067309,82.11536471,113.88,113.81,48.50861351]
[1644488067507,68.93526471,113.88,113.81,50.74258662]
[1644488067906,68.93526471,113.88,113.81,50.49258662]
[1644488068106,68.93526471,113.88,113.81,50.74258662]
[1644488068408,44.97766471,113.88,113.81,50.74258662]
[1644488068607,44.97766471,113.88,113.81,48.50861351]
[1644488068806,44.97766471,113.88,113.81,48.75861351]
[1644488069006,44.97766471,113.88,113.81,13.1801]
[1644488070812,58.15746471,113.88,113.81,13.1801]
[1644488073313,4.391,113.87,113.8,13.1813]
[1644488073513,41.9881,113.87,113.8,13.1813]
[1644488073712,37.5971,113.87,113.8,17.8233]
[1644488074114,42.31816588,113.86,113.8,17.8233]
[1644488074313,42.31816588,113.86,113.8,13.4313]
[1644488074517,42.31816588,113.86,113.81,52.54486078]
[1644488074719,42.31816588,113.86,113.81,17.5715]
[1644488075820,42.31816588,113.86,113.81,13.1795]
[1644488076619,42.31816588,113.86,113.82,39.46703542]
[1644488076821,42.31816588,113.86,113.82,52.64633542]
[1644488077021,24.4158,113.87,113.82,52.64633542]
[1644488077421,24.4158,113.87,113.82,13.1793]
[1644488077620,1.24988981,113.9,113.82,13.1793]
[1644488077844,25.15538981,113.9,113.82,13.1793]
[1644488078025,13.1787,113.89,113.82,13.1793]
[1644488078422,37.32942397,113.89,113.84,13.1754]
[1644488078622,23.9055,113.9,113.84,25.6864]
[1644488078822,23.9055,113.9,113.85,14.44397311]
[1644488079321,23.9055,113.9,113.85,12.46]
[1644488079524,48.93601329,113.92,113.86,35.46484254]
[1644488079730,47.68612348,113.92,113.86,50.62291565]
[1644488079924,47.68612348,113.92,113.86,50.87291565]
[1644488080123,47.68612348,113.92,113.86,63.08291565]
[1644488080527,47.68612348,113.92,113.87,4.39]
[1644488080722,47.68612348,113.92,113.88,13.1718]
[1644488080924,47.68612348,113.92,113.88,50.98733364]
[1644488081222,47.68612348,113.92,113.88,13.1718]
[1644488081826,1.24988981,113.94,113.88,13.1718]
[1644488082227,1.24988981,113.95,113.88,13.1718]
[1644488082825,35.2289772,113.94,113.88,52.60378113]
[1644488083029,35.2289772,113.94,113.88,13.1718]
[1644488084027,48.4015772,113.94,113.88,13.1718]
[1644488084226,52.7905772,113.94,113.88,60.02257134]
[1644488084426,39.6179772,113.94,113.88,60.02257134]
[1644488084629,39.6179772,113.94,113.88,72.73257134]
[1644488084830,35.2289772,113.94,113.88,72.73257134]
[1644488085028,35.2289772,113.94,113.88,25.6318]
[1644488085430,59.2896772,113.94,113.88,25.6318]
[1644488085830,59.2896772,113.94,113.88,30.0208]
[1644488086032,35.2289772,113.94,113.89,38.55935658]
[1644488086231,35.2289772,113.94,113.9,13.1693]
[1644488086731,24.48858981,113.96,113.9,13.1693]
[1644488087134,23.2387,113.96,113.9,13.1693]
[1644488087731,40.04815849,113.95,113.9,13.1693]
[1644488088432,45.9544,113.96,113.91,55.8540086]
[1644488088634,1.24988981,113.97,113.91,55.8540086]
[1644488088833,1.24988981,113.98,113.91,55.8540086]
[1644488089234,25.72723652,113.99,113.91,55.8540086]
[1644488089434,40.52824257,113.98,113.91,60.2400086]
[1644488089637,40.52824257,113.98,113.93,61.63959779]
[1644488090034,25.72723652,113.99,113.93,61.63959779]
[1644488090234,24.47734671,113.99,113.93,61.63959779]
[1644488090838,0.66074671,113.99,113.95,13.1625]
[1644488091040,0.66074671,113.99,113.97,34.5546595]
[1644488091237,0.66074671,113.99,113.98,2.58705679]
[1644488092037,1.10588989,113.99,113.97,13.1617]
[1644488092437,0.66074671,113.99,113.97,13.1617]
[1644488092856,0.66074671,113.99,113.97,56.01204549]
[1644488093259,0.66074671,113.99,113.97,13.1617]
[1644488093658,0.66074671,113.99,113.98,2.58705679]
[1644488093860,0.66074671,113.99,113.98,15.74725679]
[1644488094261,4.13808986,113.99,113.98,13.1602]
[1644488094461,0.66074671,113.99,113.98,13.1602]
[1644488094863,0.66074671,113.99,113.98,15.74725679]
[1644488098764,0.66074671,113.99,113.98,21.74725679]
[1644488099165,0.66074671,113.99,113.98,15.74725679]
[1644488099968,0.66074671,113.99,113.98,20.13325679]
[1644488101667,0.66074671,113.99,113.98,32.59325679]
[1644488102168,0.66074671,113.99,113.98,28.20725679]
[1644488104075,0.66074671,113.99,113.98,34.45725679]
[1644488104572,0.66074671,113.99,113.98,28.20725679]
[1644488104775,0.66074671,113.99,113.98,30.19234983]
[1644488105272,0.66074671,113.99,113.98,30.44234983]
[1644488105572,233.95615939,114.0,113.98,36.44234983]
[1644488105773,233.95615939,114.0,113.99,20.84271437]
[1644488105973,233.95615939,114.0,113.99,46.45731437]
[1644488106172,233.95615939,114.0,113.99,54.44240741]
[1644488107275,233.95615939,114.0,113.99,54.69240741]
[1644488107875,46.9822,114.08,113.99,33.84969304]
[1644488108082,46.9822,114.08,114.0,93.40062989]
[1644488108274,46.9822,114.08,114.01,12.46]
[1644488108476,46.9822,114.08,114.03,13.153]
[1644488108775,46.9822,114.08,114.03,25.613]
[1644488109376,21.17028272,114.06,114.03,25.613]
[1644488109578,21.17028272,114.06,114.04,2.58705679]
[1644488109776,3.03219997,114.05,114.03,25.613]
[1644488109976,21.17028272,114.06,114.03,25.613]
[1644488110577,21.17028272,114.06,114.04,1.98509304]
[1644488110777,21.17028272,114.06,114.05,13.1519]
[1644488111178,24.20248269,114.06,114.05,13.1519]
[1644488111377,21.17028272,114.06,114.05,15.73895679]
[1644488111980,21.17028272,114.06,114.05,28.19895679]
[1644488112379,15.80788272,114.06,114.05,28.19895679]
[1644488112785,139.65238981,114.13,114.05,28.44895679]
[1644488113079,1.24988981,114.15,114.05,36.43404983]
[1644488113281,29.93848981,114.17,114.09,13.1439]
[1644488113480,24.3066,114.17,114.1,12.46]
[1644488113682,28.6866,114.17,114.1,12.46]
[1644488113980,45.31451135,114.17,114.1,12.46]
[1644488114178,47.11646342,114.16,114.1,12.46]
[1644488115278,47.11646342,114.16,114.1,25.6058]
[1644488115481,38.59976152,114.14,114.1,25.6058]
[1644488116283,4.381,114.16,114.1,25.8558]
[1644488116485,4.381,114.16,114.12,13.1412]
[1644488117285,41.89578207,114.15,114.12,13.1412]
[1644488117485,3.47734315,114.14,114.12,13.1412]
[1644488117685,3.47734315,114.14,114.11,12.46]
[1644488118385,3.47734315,114.14,114.12,2.58705679]
[1644488118592,28.676,114.18,114.12,2.58705679]
[1644488118787,3.03219997,114.13,114.12,2.58705679]
[1644488118987,41.1765745,114.17,114.12,15.73165679]
[1644488121287,45.5565745,114.17,114.12,15.73165679]
[1644488123493,41.1765745,114.17,114.12,15.73165679]
[1644488124397,41.1765745,114.17,114.12,2.58705679]
[1644488124598,38.96741464,114.15,114.12,2.58705679]
[1644488124799,3.47734315,114.14,114.11,13.1454]
[1644488124997,35.77105657,114.13,114.11,13.1454]
[1644488125800,60.4812,114.18,114.11,15.73245679]
[1644488125998,47.3356,114.18,114.11,15.73245679]
[1644488126499,47.3356,114.18,114.11,28.19245679]
[1644488126914,48.05098945,114.17,114.11,28.19245679]
[1644488128727,48.05098945,114.17,114.11,34.19245679]
[1644488128918,48.05098945,114.17,114.11,28.19245679]
[1644488134428,48.05098945,114.17,114.12,4.38]
[1644488134624,48.05098945,114.17,114.13,13.1425]
[1644488135225,47.3356,114.18,114.13,13.1425]
[1644488136226,51.7156,114.18,114.13,13.1425]
[1644488136426,51.7156,114.18,114.12,13.1444]
[1644488136625,66.11078981,114.18,114.1,12.46]
[1644488137026,1.24988981,114.17,114.1,12.46]
[1644488137228,46.68569965,114.17,114.11,4.38]
[1644488137427,45.43580984,114.17,114.12,13.1431]
[1644488138028,46.68569965,114.17,114.12,13.1431]
[1644488138233,45.43580984,114.17,114.12,13.1431]
[1644488138430,99.01490457,114.17,114.12,13.1431]
[1644488138635,53.57909473,114.16,114.12,13.1431]
[1644488138835,34.72809036,114.15,114.12,13.1431]
[1644488139033,57.05643788,114.14,114.12,13.1431]
[1644488139236,53.57909473,114.13,114.12,13.1431]
[1644488139434,96.34272261,114.13,114.11,17.5251]
[1644488139634,53.57909473,114.12,114.11,17.5251]
[1644488140136,53.57909473,114.12,114.11,4.38]
[1644488140335,38.69996316,114.11,114.09,12.46]
[1644488140539,52.63758892,114.1,114.09,12.46]
[1644488140936,1.24988981,114.15,114.1,13.1464]
[1644488141139,52.63758892,114.15,114.1,29.9874]
[1644488141336,52.63758892,114.15,114.1,36.2374]
[1644488141536,100.41057604,114.14,114.1,30.2374]
[1644488141738,52.63758892,114.13,114.1,25.8564]
[1644488142037,44.61235468,114.12,114.1,29.9874]
[1644488142238,100.28214357,114.12,114.1,25.6064]
[1644488142436,52.69748967,114.11,114.1,29.9874]
[1644488144239,52.69748967,114.11,114.1,4.381]
[1644488144440,95.80766667,114.11,114.09,13.1475]
[1644488144639,52.651518,114.1,114.08,12.46]
[1644488144840,0.44514318,114.1,114.09,2.58705679]
[1644488145040,23.4558,114.14,114.09,15.04705679]
[1644488145240,76.107318,114.14,114.09,28.19355679]
[1644488145439,52.651518,114.13,114.09,28.19355679]
[1644488145639,52.651518,114.12,114.09,28.44355679]
[1644488145842,0.44514318,114.11,114.09,28.44355679]
[1644488146143,53.09666118,114.11,114.09,28.44355679]
[1644488146341,52.651518,114.11,114.1,4.382]
[1644488146541,54.18760571,114.11,114.1,29.9864]
[1644488146740,1.24988981,114.15,114.1,32.57345679]
[1644488147144,55.43749552,114.15,114.1,28.19145679]
[1644488147342,55.43749552,114.15,114.1,34.19145679]
[1644488147541,1.24988981,114.15,114.1,28.19145679]
[1644488147942,55.43749552,114.15,114.11,4.381]
[1644488148245,55.43749552,114.15,114.1,25.6044]
[1644488148644,41.68336601,114.14,114.1,25.6044]
[1644488148842,95.48115332,114.14,114.1,25.6044]
[1644488149043,44.84953454,114.12,114.1,25.6044]
[1644488149244,3.47734315,114.11,114.1,25.6044]
[1644488149443,57.27513046,114.11,114.1,29.9854]
[1644488149846,53.79778731,114.11,114.1,32.57245679]
[1644488150044,53.79778731,114.14,114.1,29.9854]
[1644488150244,97.84323028,114.14,114.1,29.9854]
[1644488150445,52.45233978,114.13,114.1,29.9854]
[1644488150644,0.44514318,114.12,114.1,25.6044]
[1644488150846,1.24988981,114.15,114.12,13.1418]
[1644488151147,52.45233978,114.14,114.13,17.03214983]
[1644488151346,52.45233978,114.14,114.13,14.44509304]
[1644488151545,52.45233978,114.14,114.13,12.46]
[1644488151745,52.89748296,114.14,114.13,12.46]
[1644488151955,55.92968293,114.14,114.13,12.46]
[1644488152147,55.92968293,114.14,114.13,11.96]
[1644488152744,55.92968293,114.14,114.13,25.1003]
[1644488152950,52.89748296,114.14,114.13,25.1003]
[1644488153145,52.45233978,114.14,114.13,27.68735679]
[1644488153347,47.15603904,114.14,114.13,27.68735679]
[1644488153547,47.15603904,114.16,114.13,15.72735679]
[1644488153850,46.82098628,114.14,114.13,13.1403]
[1644488154148,1.24988981,114.16,114.13,13.1403]
[1644488154347,48.37001067,114.16,114.12,13.1446]
[1644488155047,36.80269542,114.15,114.12,13.1446]
[1644488155447,83.92281628,114.15,114.12,13.1446]
[1644488155647,47.12012086,114.14,114.12,13.1446]
[1644488155847,36.80269542,114.15,114.12,13.1446]
[1644488156248,36.80269542,114.15,114.13,2.58705679]
[1644488156450,3.03219997,114.14,114.12,13.1446]
[1644488156648,46.75087998,114.13,114.12,13.1446]
[1644488157152,23.86948981,114.17,114.12,13.1446]
[1644488157352,70.17522661,114.17,114.12,13.1446]
[1644488157551,46.3057368,114.16,114.12,13.1446]
[1644488157755,69.94979649,114.17,114.12,25.6046]
[1644488158052,46.3057368,114.16,114.12,25.6046]
[1644488158252,68.69990668,114.17,114.12,29.9846]
[1644488159055,102.82595436,114.17,114.12,29.9846]
[1644488159455,68.69990668,114.17,114.12,29.9846]
[1644488160055,102.82595436,114.17,114.12,29.9846]
[1644488160475,68.69990668,114.17,114.12,29.9846]
[1644488161786,22.6196,114.17,114.12,29.9846]
[1644488161980,22.6196,114.17,114.12,35.9846]
[1644488162178,22.6196,114.17,114.14,13.1396]
[1644488162379,22.6196,114.17,114.15,2.58705679]
[1644488162779,0.44514318,114.16,114.15,2.58705679]
[1644488162979,24.296,114.18,114.15,2.58705679]
[1644488163580,1.24988981,114.2,114.15,2.58705679]
[1644488163781,21.56002407,114.2,114.15,15.72615679]
[1644488164383,56.11494727,114.2,114.15,15.72615679]
[1644488164581,17.00415523,114.19,114.15,13.1391]
[1644488164781,41.16183837,114.18,114.15,13.1391]
[1644488164981,17.44929841,114.17,114.15,13.1391]
[1644488165181,3.47734315,114.17,114.15,13.1391]
[1644488165381,1.24988981,114.2,114.16,2.58705679]
[1644488165585,18.25404504,114.2,114.16,15.72565679]
[1644488165783,17.00415523,114.2,114.16,21.97565679]
[1644488165984,17.00415523,114.2,114.16,15.97565679]